bitfinex/quotes_SOLUSD_20250809
["timestamp","ask_amount","ask_price","bid_price","bid_amount"]
[1754766700231,0.03,182.66,182.65,54.36568143]
[1754766703122,0.03,182.72,182.65,54.36568143]
[1754766703123,0.03,182.72,182.71,41.10621557]
[1754766703426,0.03,182.74,182.71,89.86738658]
[1754766703605,0.03,182.74,182.73,5.66458089]
[1754766703810,0.03,182.74,182.73,9.5738556]
[1754766704010,0.03,182.74,182.73,10.2438556]
[1754766704429,0.03,182.74,182.73,15.71641073]
[1754766705615,0.03,182.74,182.73,9.5738556]
[1754766705830,0.03,182.74,182.73,5.66458089]
[1754766706513,0.03,182.74,182.73,15.04320853]
[1754766706712,0.03,182.74,182.73,15.71320853]
[1754766707332,0.03,182.74,182.73,5.66458089]
[1754766707523,5.95458089,182.74,182.67,5.66458089]
[1754766707725,5.66458089,182.71,182.66,44.28458089]
[1754766708036,0.26,182.7,182.67,9.57565932]
[1754766708245,0.26,182.7,182.68,3.91107843]
[1754766708621,0.03,182.74,182.68,3.91107843]
[1754766708936,0.26,182.72,182.68,9.57565932]
[1754766709139,0.26,182.72,182.69,3.91107843]
[1754766709437,11.13742631,182.73,182.69,3.91107843]
[1754766709622,11.39742631,182.73,182.69,3.91107843]
[1754766709816,11.13742631,182.73,182.69,3.91107843]
[1754766710033,5.92458089,182.72,182.67,5.66458089]
[1754766710245,0.26,182.71,182.68,3.9175276]
[1754766710412,0.26,182.71,182.67,5.66458089]
[1754766710935,0.26,182.71,182.68,3.91709458]
[1754766711125,0.26,182.71,182.67,5.66458089]
[1754766711730,11.13751887,182.72,182.67,5.66458089]
[1754766711911,11.39751887,182.72,182.67,5.66458089]
[1754766712114,11.39751887,182.72,182.66,44.09465192]
[1754766712115,5.92458089,182.71,182.68,3.90964029]
[1754766712414,5.92458089,182.71,182.62,5.924581]
[1754766712415,5.66458089,182.69,182.64,5.66458089]
[1754766712619,5.92458089,182.69,182.65,3.91155277]
[1754766712932,5.92458089,182.68,182.66,3.91155277]
[1754766713124,0.26,182.67,182.63,5.66458089]
[1754766713326,5.92458089,182.69,182.64,9.57816338]
[1754766713519,0.26,182.68,182.65,3.91358249]
[1754766713721,0.26,182.68,182.66,3.91358249]
[1754766713919,5.92458089,182.67,182.61,5.72458089]
[1754766714120,11.39932214,182.66,182.62,3.91515746]
[1754766714321,11.39932214,182.66,182.63,3.91515746]
[1754766714520,5.73474125,182.66,182.64,3.91515746]
[1754766714834,5.73474125,182.66,182.62,5.66458089]
[1754766715037,5.73474125,182.66,182.63,3.91576611]
[1754766715233,5.73474125,182.66,182.64,3.91576611]
[1754766715438,11.13867711,182.68,182.65,3.91640264]
[1754766715621,11.39867711,182.68,182.63,5.66458089]
[1754766715934,11.39867711,182.68,182.64,3.91649683]
[1754766716132,11.39867711,182.68,182.65,3.91649683]
[1754766716333,5.92458089,182.67,182.62,5.66458089]
[1754766716633,5.92458089,182.67,182.63,3.91723237]
[1754766716835,5.92458089,182.67,182.64,3.91723237]
[1754766717033,5.92458089,182.67,182.62,5.66458089]
[1754766717227,5.92458089,182.67,182.63,3.91740896]
[1754766717428,11.39913374,182.67,182.64,3.91740896]
[1754766717627,11.39913374,182.67,182.62,5.66458089]
[1754766717841,11.39913374,182.67,182.63,3.91787545]
[1754766718144,0.26,182.66,182.64,3.91787545]
[1754766718318,11.13913374,182.67,182.62,5.66458089]
[1754766718518,11.13913374,182.67,182.63,3.91796927]
[1754766718738,11.13913374,182.67,182.64,3.91796927]
[1754766718937,11.39913374,182.67,182.62,6.33458089]
[1754766719243,5.92458089,182.66,182.63,3.91796773]
[1754766719437,11.39944454,182.66,182.64,3.91796773]
[1754766719642,11.39944454,182.66,182.62,0.06]
[1754766719943,11.39944454,182.66,182.63,3.91816835]
[1754766720146,0.26,182.65,182.64,3.91816835]
[1754766720663,11.13944454,182.66,182.64,3.91816835]
[1754766720836,11.39944454,182.66,182.62,0.06]
[1754766721036,11.39944454,182.66,182.63,3.91863839]
[1754766721221,11.39944454,182.66,182.64,3.91863839]
[1754766721539,11.39944454,182.66,182.62,0.06]
[1754766721851,11.39944454,182.66,182.63,3.91969012]
[1754766722016,11.39944454,182.66,182.62,0.06]
[1754766722215,11.39944454,182.66,182.63,3.92006755]
[1754766722444,11.39944454,182.66,182.64,3.92006755]
[1754766722645,11.39944454,182.66,182.64,0.06]
[1754766722842,21.03079646,182.65,182.64,0.06]
[1754766723048,5.92458089,182.65,182.64,0.06]
[1754766723351,59.67079646,182.65,182.64,0.06]
[1754766723546,65.14574855,182.65,182.64,0.06]
[1754766724053,49.77953298,182.65,182.64,0.06]
[1754766724424,44.37495209,182.65,182.64,0.06]
[1754766724630,49.77953298,182.65,182.64,0.06]
[1754766724943,50.03953298,182.65,182.64,0.06]
[1754766725328,49.77953298,182.65,182.64,0.06]
[1754766725733,49.87953298,182.65,182.64,0.06]
[1754766725938,5.47441517,182.67,182.64,0.06]
[1754766726138,38.64,182.66,182.64,0.06]
[1754766727543,5.47441517,182.67,182.64,0.06]
[1754766727737,5.4740777,182.68,182.64,6.39458089]
[1754766727939,38.68,182.67,182.64,0.73]
[1754766729048,11.13865859,182.68,182.64,0.73]
[1754766729278,38.68,182.67,182.65,0.67]
[1754766731559,44.15438609,182.67,182.64,0.06]
[1754766731853,50.07896698,182.67,182.64,0.06]
[1754766732327,44.41438609,182.67,182.64,0.06]
[1754766732531,50.07896698,182.67,182.64,0.06]
[1754766732846,38.66,182.66,182.64,0.06]
[1754766734040,44.13470153,182.66,182.64,0.06]
[1754766734240,50.05928242,182.66,182.64,0.06]
[1754766734640,5.92458089,182.65,182.64,0.06]
[1754766735056,21.03079646,182.65,182.64,0.06]
[1754766735366,26.50574855,182.65,182.64,0.06]
[1754766736049,26.50574855,182.65,182.64,1e-08]
[1754766736259,26.0,182.63,182.62,1e-08]
[1754766736441,85.43079646,182.63,182.62,1e-08]
[1754766736641,85.69079646,182.63,182.62,1e-08]
[1754766736861,85.69079646,182.63,182.61,0.06]
[1754766736862,15.10621557,182.62,182.61,1e-08]
[1754766737141,85.45079646,182.62,182.61,1e-08]
[1754766737345,79.78621557,182.62,182.61,1e-08]
[1754766737653,91.18664795,182.62,182.61,1e-08]
[1754766738664,90.92664795,182.62,182.61,1e-08]
[1754766738841,52.24664795,182.62,182.61,1e-08]
[1754766739042,91.20664795,182.62,182.61,1e-08]
[1754766741946,90.94664795,182.62,182.61,1e-08]
[1754766742142,52.24664795,182.62,182.61,1e-08]
[1754766742360,90.92664795,182.62,182.61,1e-08]
[1754766742642,91.18664795,182.62,182.61,1e-08]
[1754766743262,52.50664795,182.62,182.61,1e-08]
[1754766743479,91.18664795,182.62,182.61,1e-08]
[1754766743981,15.10621557,182.61,182.59,0.06]
[1754766744142,85.45079646,182.6,182.59,0.06]
[1754766744466,85.71079646,182.6,182.59,0.06]
[1754766744849,80.04621557,182.6,182.59,0.06]
[1754766745062,85.71079646,182.6,182.59,0.06]
[1754766745654,85.45079646,182.6,182.59,0.06]
[1754766745969,90.92724771,182.6,182.59,0.06]
[1754766746648,52.24724771,182.6,182.59,0.06]
[1754766747054,5.47615103,182.62,182.59,6.39458089]
[1754766747256,38.72,182.61,182.6,0.67]
[1754766751261,38.7,182.61,182.6,0.67]
[1754766752779,38.7,182.61,182.6,6.33458089]
[1754766753077,5.4752651,182.64,182.6,6.33458089]
[1754766753264,38.7,182.63,182.61,6.38458089]
[1754766753461,38.7,182.63,182.62,0.72]
[1754766754464,5.4752651,182.64,182.59,0.06]
[1754766754664,38.7,182.63,182.61,5.66458089]
[1754766755065,38.7,182.63,182.61,6.38458089]
[1754766756078,38.7,182.63,182.62,0.72]
[1754766757076,31.50471321,182.66,182.62,6.38458089]
[1754766757274,31.50471321,182.66,182.64,5.66458089]
[1754766757275,38.66,182.65,182.64,5.66458089]
[1754766757855,38.66,182.65,182.63,5.66458089]
[1754766758056,38.66,182.65,182.64,0.72]
[1754766758256,38.66,182.65,182.62,6.38458089]
[1754766758457,38.66,182.65,182.63,6.38458089]
[1754766760376,31.50471321,182.66,182.63,6.38458089]
[1754766760557,38.66,182.65,182.63,6.38458089]
[1754766761172,44.13508836,182.65,182.62,5.66458089]
[1754766761366,44.13508836,182.65,182.62,6.38458089]
[1754766761776,0.26,182.64,182.61,5.66458089]
[1754766761957,38.66,182.63,182.61,0.72]
[1754766762158,38.66,182.62,182.61,0.72]
[1754766762360,38.66,182.62,182.61,10.30312976]
[1754766762888,38.66,182.62,182.61,10.3031295]
[1754766765481,20.58116766,182.65,182.61,10.3031295]
[1754766765679,38.66,182.64,182.62,3.91854861]
[1754766765886,38.66,182.64,182.62,5.66458089]
[1754766766293,20.58116766,182.65,182.62,5.66458089]
[1754766766592,38.66,182.63,182.59,0.06]
[1754766766811,38.66,182.63,182.6,3.91875783]
[1754766766960,38.66,182.63,182.61,3.91875783]
[1754766767160,38.66,182.63,182.62,4.63875783]
[1754766767389,5.47528653,182.64,182.62,4.63875783]
[1754766767689,38.66,182.63,182.62,5.66458089]
[1754766767888,38.66,182.63,182.62,9.58406139]
[1754766769688,38.66,182.63,182.62,3.9194805]
[1754766771383,44.13555166,182.63,182.62,3.9194805]
[1754766771589,44.13555166,182.63,182.61,6.38458089]
[1754766772200,44.13555166,182.63,182.6,5.66458089]
[1754766772402,44.13555166,182.63,182.61,3.90843392]
[1754766772698,44.13555166,182.63,182.59,6.44458089]
[1754766772901,44.13555166,182.63,182.6,9.57341039]
[1754766773195,44.13555166,182.63,182.61,3.9088295]
[1754766773386,44.13555166,182.63,182.6,5.66458089]
[1754766773700,44.13555166,182.63,182.61,3.90912122]
[1754766773894,44.13555166,182.63,182.6,5.66458089]
[1754766774102,44.13555166,182.63,182.61,3.9090124]
[1754766774320,44.13555166,182.63,182.6,5.66458089]
[1754766774518,44.13555166,182.63,182.61,3.9091282]
[1754766774813,38.66,182.63,182.62,3.90859036]
[1754766775877,38.66,182.63,182.62,10.29317125]
[1754766776293,5.47532984,182.64,182.62,10.29317125]
[1754766776505,38.66,182.63,182.62,6.38458089]
[1754766776706,38.66,182.63,182.62,4.62980798]
[1754766777203,38.66,182.63,182.62,10.29438887]
[1754766778716,31.5046545,182.66,182.62,10.29438887]
[1754766778885,38.66,182.65,182.63,9.57438887]
[1754766779082,38.66,182.65,182.63,6.37458089]
[1754766779309,38.66,182.65,182.64,0.71]
[1754766779506,0.03,182.66,182.64,10.28550391]
[1754766779688,0.03,182.66,182.65,10.28550391]
[1754766779689,38.69,182.66,182.65,10.28550391]
[1754766780210,38.69,182.66,182.65,3.91092302]
[1754766780381,15.10621557,182.65,182.59,0.77]
[1754766780704,44.32458089,182.64,182.6,3.91124011]
[1754766780907,44.32458089,182.64,182.61,3.91124011]
[1754766781207,38.66,182.64,182.6,0.71]
[1754766781390,38.66,182.64,182.59,0.06]
[1754766781391,44.13539082,182.64,182.61,4.6228119]
[1754766781594,44.13539082,182.64,182.59,5.72458089]
[1754766781595,44.13539082,182.64,182.62,3.9128119]
[1754766781788,44.13539082,182.64,182.62,0.71]
[1754766781983,26.24577404,182.65,182.62,0.71]
[1754766782185,38.66,182.64,182.63,0.71]
[1754766782607,38.66,182.64,182.63,4.62152606]
[1754766783293,38.66,182.64,182.63,3.91152606]
[1754766783505,38.66,182.64,182.61,0.71]
[1754766783706,50.05996919,182.64,182.62,3.91190239]
[1754766783912,50.05996919,182.64,182.59,0.06]
[1754766784105,49.79996919,182.64,182.6,3.91231147]
[1754766784319,49.79996919,182.64,182.61,3.91231147]
[1754766784489,5.66458089,182.63,182.62,3.91231147]
[1754766784988,49.79996919,182.64,182.62,3.91231147]
[1754766785188,49.79996919,182.64,182.6,0.71]
[1754766785489,38.66,182.63,182.61,3.91290297]
[1754766785792,44.13562489,182.63,182.6,0.71]
[1754766785989,44.13562489,182.63,182.61,3.91345822]
[1754766786198,44.13562489,182.63,182.62,3.91345822]
[1754766786914,5.47562489,182.63,182.62,3.91345822]
[1754766787097,38.66,182.63,182.62,3.91345822]
[1754766787304,38.66,182.63,182.62,4.62345822]
[1754766787609,38.66,182.63,182.62,3.91345822]
[1754766788192,44.13555166,182.63,182.62,3.91345822]
[1754766789417,38.66,182.63,182.62,3.91345822]
[1754766789807,38.66,182.63,182.62,4.62345822]
[1754766790007,0.03,182.64,182.62,10.28803911]
[1754766790215,38.66,182.63,182.62,5.66458089]
[1754766790398,38.66,182.63,182.62,9.58151278]
[1754766790723,38.66,182.63,182.62,4.62693189]
[1754766791317,38.66,182.63,182.62,4.62964975]
[1754766791492,38.64,182.63,182.62,4.62964975]
[1754766793620,0.03,182.64,182.62,4.62964975]
[1754766793828,38.64,182.63,182.62,0.71]
[1754766794120,0.03,182.64,182.62,4.63073739]
[1754766794296,0.03,182.64,182.63,3.92073739]
[1754766794495,38.67,182.64,182.63,3.92073739]
[1754766794694,49.80983275,182.64,182.63,3.92073739]
[1754766796324,44.14525186,182.64,182.63,4.63073739]
[1754766796804,44.14525186,182.64,182.63,3.92073739]
[1754766797506,5.50525186,182.64,182.63,3.92073739]
[1754766797825,44.14525186,182.64,182.63,3.92073739]
[1754766799526,38.67,182.64,182.63,3.92073739]
[1754766799930,38.67,182.64,182.63,4.63073739]
[1754766800432,44.14525186,182.64,182.63,4.63073739]
[1754766801826,5.50525186,182.64,182.63,4.63073739]
[1754766802122,44.14525186,182.64,182.63,4.63073739]
[1754766802324,44.14525186,182.64,182.63,3.92073739]
[1754766805108,5.50525186,182.64,182.63,3.92073739]
[1754766805307,44.14525186,182.64,182.63,3.92073739]
[1754766808741,43.14525186,182.64,182.63,3.92073739]
[1754766809311,4.50525186,182.64,182.63,3.92073739]
[1754766809617,43.14525186,182.64,182.63,4.58073739]
[1754766810008,4.50525186,182.64,182.63,4.58073739]
[1754766810209,4.50525186,182.64,182.63,3.92073739]
[1754766810416,43.14525186,182.64,182.63,3.92073739]
[1754766811416,4.50525186,182.64,182.63,3.92073739]
[1754766811635,43.14525186,182.64,182.63,3.92073739]
[1754766811846,43.14525186,182.64,182.63,3.9656488]
[1754766812737,64.17604832,182.64,182.63,3.9656488]
[1754766812920,70.8397116,182.64,182.63,3.9656488]
[1754766814808,96.83909852,182.64,182.63,3.9656488]
[1754766815014,105.91676487,182.64,182.59,0.06]
[1754766815312,5.66458089,182.61,182.59,0.06]
[1754766815524,20.77079646,182.61,182.6,3.96594468]
[1754766815815,59.41079646,182.61,182.6,3.96594468]
[1754766816408,64.88694782,182.61,182.6,3.96594468]
[1754766817840,64.88694782,182.61,182.6,3.96429737]
[1754766819119,64.88694782,182.61,182.6,4.62429737]
[1754766819722,64.88694782,182.61,182.6,3.96429737]
[1754766820823,64.88694782,182.61,182.6,3.96309729]
[1754766825529,65.14694782,182.61,182.6,3.96309729]
[1754766825743,15.10621557,182.6,182.59,0.06]
[1754766825931,20.77079646,182.6,182.59,4.0236771]
[1754766826434,59.41079646,182.6,182.59,4.0236771]
[1754766826857,64.88724771,182.6,182.59,4.0236771]
[1754766828525,65.14724771,182.6,182.59,4.0236771]
[1754766828946,65.14724771,182.6,182.59,0.06]
[1754766829152,65.14724771,182.6,182.58,1e-08]
[1754766829363,15.10621557,182.57,182.56,1e-08]
[1754766829542,66.07149438,182.57,182.56,1e-08]
[1754766829754,59.67079646,182.57,182.56,1e-08]
[1754766830449,65.14814761,182.57,182.56,1e-08]
[1754766830629,64.88814761,182.57,182.56,1e-08]
[1754766831344,85.22356672,182.57,182.56,0.66000001]
[1754766831927,90.88814761,182.57,182.56,0.66000001]
[1754766832132,90.88814761,182.57,182.56,1e-08]
[1754766832643,85.22356672,182.57,182.56,0.66000001]
[1754766833032,90.88814761,182.57,182.56,0.66000001]
[1754766836154,85.22356672,182.57,182.56,0.66000001]
[1754766839736,90.88814761,182.57,182.56,0.66000001]
[1754766841938,161.29112814,182.6,182.56,0.66000001]
[1754766841939,5.47675119,182.59,182.56,0.66000001]
[1754766842164,44.30458089,182.58,182.56,0.66000001]
[1754766842341,59.41079646,182.58,182.57,0.67]
[1754766842664,64.88784761,182.58,182.57,0.67]
[1754766842841,64.88784761,182.58,182.56,1e-08]
[1754766843041,5.66458089,182.57,182.56,1e-08]
[1754766844038,11.14193204,182.57,182.49,5.47973144]
[1754766844243,5.66458089,182.56,182.51,5.66458089]
[1754766844453,44.28458089,182.56,182.52,3.94017719]
[1754766844661,44.28458089,182.56,182.53,3.94017719]
[1754766844979,38.62,182.55,182.51,5.66458089]
[1754766845164,38.62,182.55,182.52,3.94012292]
[1754766845345,38.62,182.55,182.51,5.66458089]
[1754766845549,5.47796542,182.55,182.52,4.00003685]
[1754766845758,38.62,182.54,182.53,3.94003685]
[1754766846158,38.62,182.54,182.52,0.06]
[1754766846487,38.62,182.54,182.53,3.94014959]
[1754766846655,11.14254631,182.55,182.53,3.94014959]
[1754766846856,38.62,182.54,182.52,0.73]
[1754766847054,38.62,182.54,182.53,3.94014702]
[1754766847268,38.62,182.54,182.52,0.73]
[1754766847467,44.09827239,182.54,182.52,0.73]
[1754766848374,5.47827239,182.54,182.52,0.73]
[1754766848675,65.57934793,182.53,182.52,0.06]
[1754766848968,64.86934793,182.53,182.52,0.06]
[1754766849863,65.57934793,182.53,182.52,0.06]
[1754766853868,41.10621557,182.51,182.5,0.06]
[1754766854071,85.39079646,182.51,182.5,0.06]
[1754766854281,91.57994828,182.51,182.5,0.06]
[1754766854493,91.57994828,182.51,182.5,1e-08]
[1754766856577,26.0,182.48,182.47,0.06]
[1754766856760,70.28458089,182.48,182.47,0.06]
[1754766856961,70.99458089,182.48,182.47,0.06]
[1754766857669,86.10079646,182.48,182.47,0.06]
[1754766858180,41.10621557,182.48,182.47,0.06]
[1754766858381,85.39079646,182.48,182.47,0.73]
[1754766858683,90.87084906,182.48,182.47,0.06]
[1754766858874,90.87084906,182.48,182.46,0.06]
[1754766858875,91.58084906,182.48,182.46,0.06]
[1754766859074,21.48079646,182.47,182.46,1e-08]
[1754766859277,59.39079646,182.47,182.46,1e-08]
[1754766859672,20.77079646,182.47,182.46,1e-08]
[1754766859873,59.39079646,182.47,182.46,1e-08]
[1754766860989,64.87114939,182.47,182.46,1e-08]
[1754766861190,59.2065685,182.47,182.46,1e-08]
[1754766861378,64.87114939,182.47,182.46,1e-08]
[1754766862272,26.25114939,182.47,182.46,1e-08]
[1754766862481,64.89114939,182.47,182.46,0.67000001]
[1754766862675,64.89114939,182.47,182.46,1e-08]
[1754766862876,65.60114939,182.47,182.46,1e-08]
[1754766864495,20.77079646,182.46,182.45,1e-08]
[1754766864881,59.41079646,182.46,182.45,1e-08]
[1754766866385,64.89144975,182.46,182.45,1e-08]
[1754766868974,65.55144975,182.46,182.45,1e-08]
[1754766869169,64.89144975,182.46,182.45,1e-08]
[1754766870687,20.58686886,182.46,182.45,0.71000001]
[1754766870881,59.22686886,182.46,182.45,0.71000001]
[1754766871497,64.89144975,182.46,182.45,0.71000001]
[1754766872289,26.25144975,182.46,182.45,0.71000001]
[1754766872481,64.89144975,182.46,182.45,0.71000001]
[1754766873682,26.25144975,182.46,182.45,0.71000001]
[1754766873882,64.89144975,182.46,182.45,0.71000001]
[1754766875497,38.64,182.46,182.45,0.71000001]
[1754766876100,0.03,182.48,182.45,6.3745809]
[1754766876409,38.64,182.47,182.45,0.71000001]
[1754766877210,44.12036681,182.47,182.45,0.71000001]
[1754766878208,5.48036681,182.47,182.45,0.71000001]
[1754766878390,38.64,182.46,182.45,1e-08]
[1754766878889,38.62,182.46,182.45,1e-08]
[1754766879499,38.62,182.46,182.45,0.71000001]
[1754766886790,38.62,182.46,182.45,1e-08]
[1754766887519,44.10065329,182.46,182.45,1e-08]
[1754766888512,49.76523418,182.46,182.45,1e-08]
[1754766889419,44.10065329,182.46,182.45,1e-08]
[1754766889916,44.10065329,182.46,182.45,0.71000001]
[1754766890206,38.62,182.46,182.45,0.71000001]
[1754766891123,38.62,182.46,182.45,4.64459412]
[1754766891629,38.65,182.46,182.45,4.64459412]
[1754766891815,38.65,182.46,182.45,3.93459412]
[1754766892391,49.79523418,182.46,182.45,3.93459412]
[1754766892892,49.79523418,182.46,182.45,1e-08]
[1754766893089,65.56144975,182.46,182.45,1e-08]
[1754766894100,59.89686886,182.46,182.45,1e-08]
[1754766894295,65.56144975,182.46,182.45,1e-08]
[1754766895706,5.51065329,182.46,182.45,1e-08]
[1754766895896,0.03,182.46,182.45,4.64511953]
[1754766896200,38.65,182.46,182.45,4.64511953]
[1754766896598,64.90144975,182.46,182.45,1e-08]
[1754766897109,64.90144975,182.46,182.45,3.93714503]
[1754766900228,65.62144975,182.46,182.45,3.93714503]
[1754766900435,65.62144975,182.46,182.45,1e-08]
[1754766901203,91.62144975,182.46,182.45,1e-08]
[1754766901705,15.10621557,182.45,182.43,0.2]
[1754766901933,15.10621557,182.4,182.35,0.71]
[1754766902111,59.37079646,182.4,182.37,0.77]
[1754766902302,60.09079646,182.4,182.37,0.06]
[1754766902519,21.49079646,182.4,182.37,0.06]
[1754766902720,60.09079646,182.4,182.37,0.06]
[1754766903420,65.5732526,182.4,182.37,0.06]
[1754766903821,31.48221639,182.41,182.39,0.77]
[1754766903999,38.62,182.4,182.39,6.43458089]
[1754766904209,38.62,182.4,182.39,10.37233757]
[1754766904504,38.62,182.41,182.39,10.37233757]
[1754766904710,38.62,182.41,182.4,9.60233757]
[1754766905030,38.62,182.43,182.4,10.31233757]
[1754766905329,38.62,182.43,182.42,5.66458089]
[1754766905524,0.03,182.46,182.42,10.31233757]
[1754766905825,38.62,182.45,182.44,5.66458089]
[1754766906025,38.62,182.45,182.44,9.60233757]
[1754766906224,38.65,182.46,182.44,10.31233757]
[1754766906409,38.65,182.46,182.45,9.60233757]
[1754766906605,38.65,182.46,182.45,10.31233757]
[1754766906804,0.03,182.46,182.45,10.31233757]
[1754766907521,0.03,182.46,182.45,10.30430472]
[1754766910705,0.03,182.46,182.45,15.7852584]
[1754766911523,0.03,182.46,182.45,10.30430472]
[1754766913508,0.03,182.46,182.45,15.7852584]
[1754766914238,0.03,182.46,182.45,10.12067751]
[1754766914464,0.03,182.46,182.45,15.7852584]
[1754766922552,0.03,182.46,182.45,10.12067751]
[1754766922735,0.03,182.46,182.45,15.7852584]
[1754766923441,0.03,182.46,182.45,3.92972383]
[1754766923639,0.03,182.46,182.45,9.59430472]
[1754766923841,0.03,182.46,182.45,15.7852584]
[1754766926851,0.03,182.48,182.47,26.0]
[1754766927037,0.03,182.48,182.47,74.19430472]
[1754766927236,0.03,182.48,182.47,74.90430472]
[1754766927559,0.03,182.48,182.47,80.38465765]
[1754766928159,0.03,182.48,182.47,80.37022498]
[1754766931137,0.03,182.48,182.47,80.36847412]
[1754766932041,0.03,182.48,182.47,79.65847412]
[1754766932259,0.03,182.48,182.47,80.35847412]
[1754766940243,0.03,182.48,182.47,41.75847412]
[1754766940569,0.03,182.48,182.47,79.63847412]
[1754766941072,0.72,182.48,182.47,3.9135403]
[1754766942546,0.72,182.48,182.46,3.9135403]
[1754766942751,11.86472511,182.48,182.47,3.9135403]
[1754766942952,11.86472511,182.48,182.42,49.72620225]
[1754766943152,0.69,182.47,182.43,3.91298286]
[1754766943354,0.69,182.47,182.44,3.91298286]
[1754766943543,0.69,182.47,182.45,3.91298286]
[1754766943737,0.69,182.47,182.46,3.91298286]
[1754766943960,0.69,182.47,182.44,3.91298286]
[1754766944144,5.66458089,182.46,182.41,5.72458089]
[1754766944349,0.69,182.45,182.42,3.91616758]
[1754766944565,0.69,182.44,182.43,3.91616758]
[1754766945847,0.03,182.48,182.43,6.36458089]
[1754766946052,0.72,182.48,182.45,5.66458089]
[1754766946251,0.72,182.48,182.46,3.91691976]
[1754766947245,0.03,182.48,182.45,5.66458089]
[1754766947445,0.72,182.48,182.46,9.58376374]
[1754766947645,0.03,182.48,182.45,6.36458089]
[1754766947845,0.03,182.48,182.46,3.91908438]
[1754766948053,0.69,182.47,182.45,5.66458089]
[1754766948265,0.69,182.47,182.46,3.91910929]
[1754766948645,0.03,182.48,182.46,3.9231033]
[1754766948859,0.72,182.48,182.47,3.9231033]
[1754766950978,0.03,182.48,182.47,3.9231033]
[1754766953063,0.03,182.48,182.47,3.92897943]
[1754766954257,0.72,182.48,182.47,3.92897943]
[1754766955458,6.38458089,182.48,182.47,3.92897943]
[1754766956262,11.86463349,182.48,182.47,3.92897943]
[1754766957179,6.2000526,182.48,182.47,3.92897943]
[1754766957381,11.86463349,182.48,182.47,3.92897943]
[1754766958769,11.86463349,182.48,182.46,0.06]
[1754766958976,6.37458089,182.47,182.46,0.06]
[1754766959175,6.37458089,182.47,182.46,3.98901303]
[1754766959674,11.85493382,182.47,182.46,3.98901303]
[1754766960171,26.96114939,182.47,182.46,3.98901303]
[1754766960368,26.96114939,182.47,182.46,0.06]
[1754766961367,52.96114939,182.47,182.46,0.06]
[1754766964567,15.10621557,182.46,182.42,0.06]
[1754766964761,26.43537735,182.43,182.42,0.06]
[1754766965187,27.14537735,182.43,182.42,0.06]
[1754766965802,21.48079646,182.43,182.42,0.06]
[1754766966508,26.25235102,182.43,182.42,0.06]
[1754766967201,26.96235102,182.43,182.42,0.06]
[1754766967901,20.58777013,182.43,182.42,0.06]
[1754766968100,59.16777013,182.43,182.42,0.72]
[1754766968400,59.16777013,182.43,182.42,0.06]
[1754766968604,64.83235102,182.43,182.42,0.06]
[1754766969696,59.87777013,182.43,182.42,0.06]
[1754766969906,65.54235102,182.43,182.42,0.06]
[1754766970484,59.87777013,182.43,182.42,0.06]
[1754766970684,65.54235102,182.43,182.42,0.06]
[1754766971908,59.87777013,182.43,182.42,0.06]
[1754766972092,65.54235102,182.43,182.42,0.06]
[1754766973180,64.83235102,182.43,182.42,0.06]
[1754766973386,64.83235102,182.43,182.42,0.72]
[1754766973387,5.48155456,182.43,182.42,0.72]
[1754766973584,38.58,182.43,182.42,0.72]
[1754766974408,50.43626734,182.43,182.41,0.06]
[1754766974795,49.72626734,182.43,182.41,0.06]
[1754766975002,21.48079646,182.42,182.41,0.06]
[1754766975803,26.96265151,182.42,182.41,0.06]
[1754766981305,21.29807062,182.42,182.41,0.06]
[1754766981514,26.25265151,182.42,182.41,0.06]
[1754766981919,20.58807062,182.42,182.41,0.06]
[1754766982113,59.16807062,182.42,182.41,0.72]
[1754766982932,64.83265151,182.42,182.41,0.06]
[1754766985834,65.54265151,182.42,182.41,0.06]
[1754766986241,64.83265151,182.42,182.41,0.06]
[1754766986540,59.16807062,182.42,182.41,0.06]
[1754766986711,64.83265151,182.42,182.41,0.72]